bitfinex/quotes_SOLUSD_20241210
["timestamp","ask_amount","ask_price","bid_price","bid_amount"]
[1733797065893,0.5330683,218.14,218.13,22.21356517]
[1733797066099,0.5330683,218.14,218.13,22.33905517]
[1733797066401,0.5330683,218.14,218.13,44.55262034]
[1733797067001,0.5330683,218.14,218.13,356.55262034]
[1733797067199,1.579,218.33,218.13,356.55262034]
[1733797067200,6.6279,218.32,218.16,20.0]
[1733797067405,6.6279,218.32,218.14,0.12549]
[1733797067406,6.6279,218.32,218.23,22.21356517]
[1733797067604,6.6279,218.32,218.2,22.21356517]
[1733797067828,6.6279,218.32,218.19,0.12549]
[1733797068028,6.6279,218.32,218.16,22.21356517]
[1733797068224,6.6279,218.32,218.1,13.0743]
[1733797068527,0.12549,218.31,218.13,22.21356517]
[1733797068705,20.0,218.29,218.14,22.21356517]
[1733797069025,20.0,218.29,218.13,22.21356517]
[1733797069602,20.0,218.29,218.15,22.21356517]
[1733797069799,20.0,218.29,218.14,22.21356517]
[1733797070412,20.0,218.29,218.15,22.21356517]
[1733797070616,20.0,218.29,218.15,334.21356517]
[1733797071308,20.0,218.29,218.14,22.21356517]
[1733797071806,20.0,218.29,218.15,0.12549]
[1733797072116,20.0,218.29,218.18,0.12549]
[1733797074222,20.0,218.29,218.19,22.21356517]
[1733797074526,20.0,218.29,218.21,22.21356517]
[1733797074730,20.0,218.29,218.2,22.33905517]
[1733797074925,20.0,218.29,218.17,22.21356517]
[1733797075228,20.0,218.29,218.18,0.12549]
[1733797075639,20.0,218.29,218.13,22.21356517]
[1733797076127,20.0,218.29,218.15,22.21356517]
[1733797076329,20.0,218.29,218.1,19.963226]
[1733797076330,20.0,218.29,218.16,22.21356517]
[1733797076515,6.6279,218.32,218.17,22.21356517]
[1733797076720,6.6279,218.32,218.18,22.21356517]
[1733797076925,6.6279,218.32,218.19,0.12549]
[1733797077310,6.6279,218.32,218.18,22.21356517]
[1733797077714,6.6279,218.32,218.19,22.33905517]
[1733797078037,6.6279,218.32,218.28,312.0]
[1733797078038,20.0,218.29,218.28,312.0]
[1733797078407,20.0,218.29,218.17,22.33905517]
[1733797078642,20.0,218.29,218.2,0.12549]
[1733797079111,20.0,218.29,218.16,22.21356517]
[1733797079308,20.0,218.29,218.17,0.12549]
[1733797079710,20.0,218.29,218.17,22.33905517]
[1733797080634,20.0,218.29,218.15,22.33905517]
[1733797080822,20.0,218.29,218.12,22.21356517]
[1733797081005,20.0,218.29,218.1,1.6119]
[1733797081006,20.0,218.29,218.13,22.21356517]
[1733797081406,20.0,218.29,218.22,312.0]
[1733797082017,20.0,218.29,218.14,22.21356517]
[1733797082217,20.0,218.29,218.17,22.21356517]
[1733797083010,20.0,218.29,218.13,22.21356517]
[1733797083232,20.0,218.29,218.13,0.12549]
[1733797084219,20.0,218.29,218.15,22.33905517]
[1733797084419,20.0,218.29,218.15,22.21356517]
[1733797084625,20.0,218.29,218.17,22.21356517]
[1733797085014,20.0,218.29,218.18,312.0]
[1733797085518,20.0,218.29,218.13,0.12549]
[1733797085727,0.12549,218.28,218.11,0.12549]
[1733797085924,0.12549,218.28,218.11,22.33905517]
[1733797086321,0.12549,218.28,218.1,22.21356517]
[1733797086515,20.0,218.23,218.09,22.21356517]
[1733797086720,20.0,218.23,218.1,22.21356517]
[1733797087229,20.0,218.23,218.09,22.21356517]
[1733797087414,20.0,218.23,218.04,1.6119]
[1733797087415,1.579,218.21,218.05,22.21356517]
[1733797087615,20.0,218.16,218.02,22.21356517]
[1733797088031,20.0,218.16,217.97,1.6119]
[1733797088032,20.0,218.16,218.0,22.21356517]
[1733797088243,0.12549,218.15,217.97,22.21356517]
[1733797088417,0.12549,218.15,217.95,22.21356517]
[1733797088418,20.0,218.11,217.95,22.21356517]
[1733797088628,20.0,218.07,217.91,22.21356517]
[1733797088819,0.12549,218.06,217.95,18.363014]
[1733797089017,0.12549,218.06,217.87,22.21356517]
[1733797089218,20.12549,218.06,217.87,22.21356517]
[1733797089431,20.0,218.02,217.87,22.21356517]
[1733797089730,20.0,218.02,217.92,22.21356517]
[1733797089935,20.0,218.02,217.94,22.21356517]
[1733797090135,6.6279,218.05,217.96,22.21356517]
[1733797090332,6.6279,218.05,217.98,22.21356517]
[1733797090530,6.6279,218.05,217.97,22.21356517]
[1733797090919,6.6279,218.05,217.96,22.21356517]
[1733797091124,6.6279,218.05,217.92,22.21356517]
[1733797091732,20.0,218.02,217.87,22.21356517]
[1733797091937,20.0,218.02,217.86,22.21356517]
[1733797092527,20.0,218.02,217.85,22.21356517]
[1733797092849,20.0,218.02,217.91,22.21356517]
[1733797093142,20.0,218.02,217.87,22.21356517]
[1733797093446,20.0,218.02,217.87,22.33905517]
[1733797094420,20.0,218.02,217.87,0.12549]
[1733797094839,20.0,218.02,217.89,312.0]
[1733797095045,1.5921,218.01,217.89,312.0]
[1733797095345,0.12549,218.0,217.82,18.373348]
[1733797095546,20.0,217.96,217.82,18.373348]
[1733797095843,20.0,217.96,217.78,22.21356517]
[1733797096047,20.12549,217.95,217.75,22.21356517]
[1733797096344,20.0,217.88,217.73,22.21356517]
[1733797096517,1.5921,217.87,217.7,40.59665817]
[1733797096720,1.5921,217.87,217.71,22.21356517]
[1733797097222,1.5921,217.87,217.7,22.21356517]
[1733797097430,0.12549,217.86,217.68,22.21356517]
[1733797097631,0.12549,217.86,217.67,18.385371]
[1733797097632,20.0,217.84,217.67,18.385371]
[1733797097960,20.0,217.79,217.63,22.21356517]
[1733797098129,20.0,217.79,217.62,22.21356517]
[1733797098333,20.0,217.79,217.59,18.392369]
[1733797098334,20.0,217.79,217.65,334.21356517]
[1733797098845,20.0,217.79,217.65,312.0]
[1733797099028,20.0,217.79,217.65,22.21356517]
[1733797099233,20.0,217.79,217.67,22.21356517]
[1733797099424,20.0,217.79,217.6,12.0217683]
[1733797099425,20.0,217.79,217.68,22.21356517]
[1733797099644,20.0,217.79,217.62,22.21356517]
[1733797099949,20.0,217.79,217.61,22.21356517]
[1733797100240,0.12549,217.78,217.6,22.74663347]
[1733797100660,20.0,217.73,217.6,0.5330683]
[1733797100859,6.5754,217.71,217.6,0.5330683]
[1733797101023,20.0,217.68,217.6,0.5330683]
[1733797101425,0.12549,217.67,217.6,0.5330683]
[1733797101644,20.12549,217.67,217.6,0.5330683]
[1733797101828,20.0,217.67,217.6,0.5330683]
[1733797102026,20.0,217.68,217.6,0.5330683]
[1733797103368,20.12549,217.67,217.6,0.5330683]
[1733797103853,20.0,217.67,217.6,0.5330683]
[1733797104028,6.5754,217.71,217.6,0.5330683]
[1733797106740,20.0,217.68,217.6,0.5330683]
[1733797107756,0.12549,217.67,217.6,0.5330683]
[1733797109147,20.0,217.68,217.6,0.5330683]
[1733797109356,20.12549,217.67,217.6,0.5330683]
[1733797110032,0.12549,217.67,217.6,0.5330683]
[1733797110434,20.12549,217.67,217.6,0.5330683]
[1733797110634,20.0,217.63,217.44,22.21356517]
[1733797110829,0.12549,217.62,217.43,22.21356517]
[1733797111036,0.12549,217.6,217.43,18.40858]
[1733797111237,20.0,217.58,217.4,22.21356517]
[1733797111645,20.0,217.58,217.43,22.21356517]
[1733797111859,20.0,217.58,217.41,28.57246517]
[1733797112058,20.0,217.58,217.4,22.21356517]
[1733797112247,20.0,217.58,217.41,22.33905517]
[1733797112455,20.0,217.58,217.42,0.12549]
[1733797112640,20.0,217.58,217.39,0.5330683]
[1733797112641,0.12549,217.57,217.39,0.5330683]
[1733797112842,20.0,217.56,217.39,0.5330683]
[1733797113143,0.12549,217.53,217.39,0.5330683]
[1733797113348,0.12549,217.48,217.39,0.5330683]
[1733797113748,0.12549,217.48,217.39,312.5330683]
[1733797114358,20.0,217.49,217.39,0.5330683]
[1733797115063,0.12549,217.48,217.39,0.5330683]
[1733797115937,20.0,217.49,217.39,0.5330683]
[1733797116863,0.12549,217.48,217.39,0.5330683]
[1733797117567,20.0,217.42,217.23,22.21356517]
[1733797117864,20.0,217.37,217.22,18.426245]
[1733797118062,20.0,217.37,217.21,22.21356517]
[1733797118444,20.0,217.37,217.2,22.21356517]
[1733797118760,20.0,217.37,217.14,22.21356517]
[1733797118761,20.12549,217.36,217.17,22.74663347]
[1733797118956,20.12549,217.36,217.17,0.5330683]
[1733797119262,0.12549,217.31,217.17,0.5330683]
[1733797119465,20.0,217.32,217.17,0.5330683]
[1733797119675,20.0,217.27,217.17,0.5330683]
[1733797120385,0.12549,217.24,217.17,0.5330683]
[1733797121065,0.12549,217.22,217.17,0.5330683]
[1733797121442,20.0,217.18,217.17,6.83e-05]
[1733797121666,0.12549,217.17,216.99,22.21356517]
[1733797121862,0.12549,217.17,216.98,1.5224]
[1733797121863,20.0,217.13,216.98,22.21356517]
[1733797122289,20.0,217.13,216.97,22.21356517]
[1733797122479,20.0,217.13,216.98,22.21356517]
[1733797122643,20.12549,217.12,216.96,0.5330683]
[1733797122847,20.0,217.13,216.96,0.5330683]
[1733797122848,0.12549,217.09,216.96,0.5330683]
[1733797123074,20.12549,217.04,216.96,0.5330683]
[1733797123664,30.12549,217.04,216.96,0.5330683]
[1733797124060,20.0,217.05,216.96,0.5330683]
[1733797125063,6.601,217.08,216.96,0.5330683]
[1733797125375,6.601,217.08,217.0,36.45230423]
[1733797125669,6.601,217.08,216.96,0.5330683]
[1733797126050,6.601,217.08,216.96,36.98537253]
[1733797126455,20.0,217.05,216.96,0.5330683]
[1733797126894,20.12549,217.04,216.96,0.5330683]
[1733797127072,20.0,217.0,216.96,0.5330683]
[1733797127383,0.12549,216.99,216.96,0.5330683]
[1733797127676,20.12549,216.99,216.96,0.5330683]
[1733797128185,20.0,217.04,216.96,0.5330683]
[1733797128363,0.12549,217.03,216.96,0.5330683]
[1733797129060,0.12549,217.04,216.96,0.5330683]
[1733797129456,20.0,217.03,216.96,0.5330683]
[1733797129653,0.12549,217.02,216.96,0.5330683]
[1733797130179,0.12549,217.0,216.96,0.5330683]
[1733797130586,20.0,216.99,216.96,0.5330683]
[1733797130748,0.12549,216.98,216.96,0.5330683]
[1733797131186,20.0,216.94,216.8,36.45230423]
[1733797131396,0.12549,216.93,216.77,36.45230423]
[1733797131696,0.12549,216.93,216.78,36.45230423]
[1733797132186,0.12549,216.93,216.78,348.45230423]
[1733797132473,0.12549,216.91,216.78,348.45230423]
[1733797132675,26.601,216.92,216.78,348.45230423]
[1733797132676,26.601,216.92,216.81,36.45230423]
[1733797133293,6.601,216.99,216.86,36.45230423]
[1733797133492,6.601,216.99,216.82,36.45230423]
[1733797133777,6.601,216.99,216.85,36.45230423]
[1733797134150,6.601,216.99,216.86,36.45230423]
[1733797134356,6.601,216.99,216.79,31.65729]
[1733797134357,6.601,216.99,216.9,36.45230423]
[1733797134555,16.601,217.08,216.9,36.45230423]
[1733797134976,6.601,217.08,216.94,36.45230423]
[1733797135155,6.601,217.08,216.92,36.45230423]
[1733797135478,6.601,217.08,216.94,36.45230423]
[1733797135860,6.601,217.08,216.94,312.0]
[1733797136162,20.0,217.05,216.94,312.0]
[1733797136361,6.601,217.08,216.99,36.45230423]
[1733797137471,6.601,217.17,217.02,36.45230423]
[1733797137673,6.601,217.17,217.01,36.45230423]
[1733797137870,6.601,217.17,217.03,36.45230423]
[1733797138267,6.601,217.17,217.07,0.12549]
[1733797138464,6.601,217.17,216.98,10.0]
[1733797138465,6.601,217.17,217.04,36.45230423]
[1733797138680,6.601,217.17,217.04,36.57779423]
[1733797139254,6.601,217.17,217.0,312.0]
[1733797139459,20.0,217.14,217.0,312.0]
[1733797140163,20.0,217.14,217.0,348.45230423]
[1733797140364,20.0,217.14,217.03,36.45230423]
[1733797140561,20.0,217.14,217.0,36.45230423]
[1733797141181,20.0,217.14,217.02,36.57779423]
[1733797141354,20.0,217.14,217.05,36.45230423]
[1733797141692,20.0,217.14,216.99,36.45230423]
[1733797141899,20.0,217.14,216.95,11.5229]
[1733797141900,20.0,217.14,216.95,36.45230423]
[1733797142390,20.0,217.14,216.97,36.45230423]
[1733797142603,20.0,217.14,217.01,36.45230423]
[1733797142964,20.0,217.14,217.02,36.57779423]
[1733797143293,20.0,217.14,217.05,312.0]
[1733797143494,20.0,217.14,217.0,36.57779423]
[1733797143708,20.0,217.14,217.01,36.45230423]
[1733797144301,6.601,217.17,217.03,36.45230423]
[1733797144509,6.601,217.17,217.07,36.45230423]
[1733797144692,6.601,217.17,217.02,36.45230423]
[1733797144895,6.601,217.17,217.04,36.45230423]
[1733797145204,6.601,217.17,217.08,36.45230423]
[1733797145410,6.601,217.25,217.1,36.45230423]
[1733797145909,6.601,217.25,217.13,36.57779423]
[1733797146108,6.601,217.25,217.14,36.45230423]
[1733797146296,6.601,217.25,217.13,36.57779423]
[1733797146476,6.601,217.25,217.15,36.45230423]
[1733797146991,6.601,217.25,217.1,36.45230423]
[1733797147183,6.601,217.25,217.13,36.45230423]
[1733797147693,20.0,217.22,217.11,36.57779423]
[1733797148081,6.601,217.25,217.13,36.45230423]
[1733797148472,6.601,217.25,217.09,36.45230423]
[1733797149678,6.601,217.25,217.08,10.0]
[1733797149679,20.0,217.22,217.08,10.0]
[1733797149887,0.12549,217.21,217.03,36.45230423]
[1733797150205,20.12549,217.21,217.02,18.443317]
[1733797150414,0.12549,217.18,217.01,36.45230423]
[1733797151190,20.12549,217.16,216.97,36.45230423]
[1733797151372,20.0,217.14,216.97,36.45230423]
[1733797151580,20.0,217.14,217.02,36.45230423]
[1733797152886,20.0,217.14,216.99,312.0]
[1733797153078,20.0,217.14,216.99,348.45230423]
[1733797153695,20.0,217.14,216.99,312.0]
[1733797153696,0.12549,217.13,216.99,312.0]
[1733797153871,0.12549,217.13,216.96,54.90128823]
[1733797154073,20.0,217.14,216.97,36.45230423]
[1733797154276,0.12549,217.13,216.96,36.45230423]
[1733797154476,0.12549,217.09,216.91,36.45230423]
[1733797154683,20.0,217.05,216.9,36.45230423]
[1733797154883,20.0,217.05,216.89,0.1354384]
[1733797154884,0.12549,217.04,216.89,0.1354384]
[1733797155092,0.12549,217.04,216.91,18.453028]
[1733797155508,1.6253,217.03,216.89,0.1354384]
[1733797155713,0.12549,217.02,216.89,0.1354384]
[1733797156219,0.12549,217.0,216.89,0.1354384]
[1733797156421,0.12549,216.96,216.89,0.1354384]
[1733797156593,20.0,216.97,216.89,0.1354384]
[1733797157816,0.12549,216.96,216.89,0.1354384]
[1733797158684,20.0,216.97,216.89,0.1354384]
[1733797159096,6.3522,217.0,216.89,36.58774263]
[1733797159304,6.3522,217.0,216.93,36.45230423]
[1733797159712,6.3522,217.0,216.92,36.45230423]
[1733797159901,6.3522,217.0,216.89,36.58774263]
[1733797160409,20.0,216.97,216.89,36.58774263]
[1733797160803,20.0,216.97,216.89,0.1354384]
[1733797161787,0.12549,216.94,216.89,0.1354384]
[1733797163311,20.0,216.9,216.74,36.45230423]
[1733797163486,0.12549,216.89,216.73,36.45230423]
[1733797163694,0.12549,216.89,216.74,36.45230423]
[1733797164004,20.0,216.9,216.79,36.45230423]
[1733797164306,6.3522,216.93,216.85,36.45230423]
[1733797164520,6.3522,216.93,216.8,54.91443723]
[1733797164741,6.3522,216.93,216.82,36.45230423]
[1733797164885,6.3522,216.93,216.83,36.45230423]
[1733797165085,6.3522,216.93,216.81,312.0]
[1733797165086,6.3522,216.93,216.86,36.45230423]
[1733797165280,23.13790204,217.23,216.84,20.0]
[1733797165281,8.0398,217.08,216.91,36.45230423]
[1733797165489,8.0398,217.08,216.94,36.45230423]
[1733797165797,8.0398,217.08,216.96,36.45230423]
[1733797166101,8.0398,217.08,216.95,36.45230423]
[1733797166293,6.5168,217.08,216.98,36.45230423]
[1733797166713,6.5168,217.08,216.96,0.12549]
[1733797166714,6.5168,217.08,216.97,36.45230423]
[1733797167285,6.5168,217.08,217.0,36.45230423]
[1733797167682,6.5168,217.13,217.02,36.45230423]
[1733797167889,6.5168,217.13,217.04,36.45230423]
[1733797168103,6.5168,217.13,217.04,312.0]
[1733797168396,6.5168,217.13,217.05,36.57779423]
[1733797168611,6.5168,217.21,217.04,312.0]
[1733797168806,6.5168,217.21,217.03,36.57779423]
[1733797169123,6.5168,217.21,217.01,36.57779423]
[1733797169496,20.0,217.18,217.02,36.45230423]
[1733797169695,20.0,217.18,216.98,0.12549]
[1733797169905,20.0,217.13,216.95,36.45230423]
[1733797170107,20.0,217.13,216.96,36.45230423]
[1733797170312,20.0,217.13,216.97,36.45230423]
[1733797171197,20.0,217.13,216.98,0.12549]
[1733797171517,0.12549,217.12,216.94,36.45230423]
[1733797171813,0.12549,217.12,216.97,312.0]
[1733797172192,0.12549,217.12,216.96,36.45230423]
[1733797172517,0.12549,217.12,216.95,36.45230423]
[1733797172914,0.12549,217.1,216.9,36.45230423]
[1733797173098,1.523,217.11,216.87,36.45230423]
[1733797173099,0.12549,217.05,216.87,36.45230423]
[1733797173305,0.12549,217.05,216.86,38.10290423]
[1733797173614,0.12549,217.05,216.84,36.45230423]
[1733797173615,20.12549,217.05,216.84,36.45230423]
[1733797173814,20.12549,217.05,216.8,1.6506]
[1733797173815,20.0,217.04,216.83,36.45230423]
[1733797174023,26.5168,217.04,216.87,36.45230423]
[1733797174312,26.5168,217.04,216.91,36.45230423]
[1733797174516,26.5168,217.04,216.93,36.45230423]
[1733797174714,6.5168,217.04,216.94,36.45230423]
[1733797174898,6.5168,217.04,216.96,36.45230423]
[1733797175308,6.5168,217.04,216.99,312.0]
[1733797175503,1.523,217.11,216.99,312.0]
[1733797175815,6.5168,217.1,216.93,36.45230423]
[1733797175998,6.5168,217.1,216.88,36.45230423]
[1733797176393,6.5168,217.1,216.89,36.45230423]
[1733797176795,0.12549,217.09,216.89,36.45230423]
[1733797176996,6.5168,217.1,216.92,36.45230423]
[1733797177215,20.0,217.07,216.93,36.45230423]
[1733797178021,20.0,217.07,216.94,36.45230423]
[1733797178597,6.5168,217.1,216.95,36.45230423]
[1733797178797,6.5168,217.1,216.97,312.0]
[1733797179198,6.5168,217.1,216.9,36.45230423]
[1733797179415,6.5168,217.1,216.94,36.45230423]
[1733797179712,6.5168,217.1,216.93,36.45230423]
[1733797179918,6.5168,217.1,216.85,10.0]
[1733797179919,20.0,217.07,216.91,36.45230423]
[1733797181410,0.12549,217.06,216.87,36.45230423]
[1733797181599,20.0,217.02,216.85,36.45230423]
[1733797181808,20.0,217.02,216.8,1.6506]
[1733797181809,1.6219,217.0,216.81,36.45230423]
[1733797182199,1.6219,217.0,216.83,36.45230423]
[1733797182800,6.1954,216.98,216.81,36.45230423]
[1733797183007,20.0,216.95,216.81,36.45230423]
[1733797184525,20.0,216.95,216.83,36.45230423]
[1733797184905,0.12549,216.94,216.77,36.45230423]
[1733797185302,0.12549,216.94,216.75,36.45230423]
[1733797185507,20.0,216.9,216.75,36.45230423]
[1733797185707,1.74739,216.89,216.73,36.45230423]
[1733797185909,1.74739,216.89,216.71,36.45230423]
[1733797185910,1.6219,216.89,216.71,36.45230423]
[1733797186222,1.6219,216.89,216.73,36.45230423]
[1733797188118,1.6219,216.89,216.75,36.45230423]
[1733797188520,1.6219,216.89,216.74,36.45230423]
[1733797188725,1.6219,216.89,216.75,312.0]
[1733797189121,1.6219,216.89,216.75,348.45230423]
[1733797189510,1.6219,216.89,216.75,312.0]
[1733797189710,0.12549,216.88,216.75,312.0]
[1733797190119,1.6219,216.89,216.75,312.0]
[1733797190726,1.6219,216.89,216.72,36.45230423]
[1733797191726,0.12549,216.88,216.71,36.45230423]
[1733797192035,20.0,216.84,216.69,36.45230423]
[1733797192240,10.0,216.74,216.59,18.474005]
[1733797192541,10.0,216.78,216.51,36.45230423]
[1733797192542,20.12549,216.7,216.51,36.45230423]
[1733797192845,20.0,216.7,216.51,36.45230423]
[1733797193024,0.12549,216.69,216.5,36.45230423]
[1733797193210,0.12549,216.69,216.43,11.551]
[1733797193211,0.12549,216.69,216.51,36.45230423]
[1733797193419,0.12549,216.69,216.65,0.4388286]
[1733797194141,20.0,216.7,216.65,0.4388286]
[1733797198515,0.12549,216.69,216.65,0.4388286]
[1733797199414,20.0,216.67,216.5,0.5454956]
[1733797199623,20.12549,216.69,216.5,0.5454956]
[1733797199624,6.4859,216.68,216.5,0.5454956]
[1733797199813,20.0,216.65,216.5,0.5454956]
[1733797200709,0.12549,216.64,216.5,0.5454956]
[1733797201311,0.12549,216.62,216.5,0.5454956]
[1733797201516,20.0,216.58,216.5,0.5454956]
[1733797201737,0.12549,216.55,216.5,0.5454956]
[1733797201926,0.12549,216.53,216.5,9.56e-05]
[1733797202121,1.5313,216.54,216.5,9.56e-05]
[1733797202314,1.5313,216.54,216.33,1.6386]
[1733797202315,0.12549,216.53,216.33,1.6386]
[1733797202514,20.0,216.49,216.33,1.6386]
[1733797202915,20.0,216.49,216.33,38.09090423]
[1733797203116,20.0,216.49,216.37,36.45230423]
[1733797203324,6.2985,216.52,216.38,36.45230423]
[1733797203633,6.2985,216.52,216.39,36.45230423]
[1733797204039,6.2985,216.52,216.42,36.45230423]
[1733797204342,6.2985,216.52,216.35,10.0]
[1733797204343,6.2985,216.52,216.4,36.45230423]
[1733797204639,6.2985,216.52,216.34,36.45230423]
[1733797204817,6.2985,216.52,216.35,312.0]
[1733797205327,20.0,216.49,216.35,312.0]
[1733797206045,20.0,216.49,216.35,348.45230423]
[1733797207237,20.0,216.49,216.36,36.45230423]
[1733797207448,6.2985,216.52,216.39,36.45230423]
[1733797207742,6.2985,216.52,216.36,36.45230423]
[1733797207918,6.2985,216.52,216.35,36.45230423]
[1733797208256,1.5313,216.51,216.3,36.45230423]
[1733797208539,1.5313,216.51,216.28,0.5454956]
[1733797208540,1.5313,216.51,216.28,36.99779983]
[1733797208837,0.12549,216.48,216.28,36.99779983]
[1733797209039,20.0,216.49,216.33,36.45230423]
[1733797209240,1.5313,216.51,216.29,11.5585]
[1733797209241,1.5313,216.51,216.38,36.45230423]
[1733797209743,1.5313,216.51,216.37,36.45230423]
[1733797209929,1.5313,216.51,216.38,36.45230423]
[1733797210124,1.5313,216.51,216.4,36.45230423]
[1733797210925,6.2985,216.52,216.44,36.45230423]
[1733797211630,6.2985,216.52,216.41,36.45230423]
[1733797211838,6.2985,216.52,216.44,36.45230423]
[1733797212047,6.2985,216.52,216.47,36.45230423]
[1733797212261,6.2985,216.58,216.48,36.45230423]
[1733797212424,6.2985,216.58,216.41,0.12549]
[1733797212425,6.2985,216.58,216.49,36.45230423]
[1733797212747,6.2985,216.58,216.51,36.45230423]
[1733797213058,6.2985,216.58,216.5,36.45230423]
[1733797213346,6.2985,216.58,216.45,11.5495]
[1733797213347,6.2985,216.58,216.49,36.45230423]
[1733797213519,6.2985,216.58,216.5,36.45230423]
[1733797213727,6.2985,216.58,216.52,36.45230423]
[1733797214227,6.0217,216.64,216.54,36.45230423]
[1733797214531,6.0217,216.64,216.51,36.45230423]
[1733797214736,6.0217,216.64,216.47,36.45230423]
[1733797214932,6.0217,216.64,216.46,36.45230423]
[1733797215141,6.0217,216.64,216.45,36.45230423]
[1733797215347,6.0217,216.64,216.46,36.45230423]
[1733797215665,6.0217,216.64,216.4,0.12549]
[1733797215666,6.0217,216.64,216.48,36.45230423]
[1733797215949,20.0,216.61,216.49,36.45230423]
[1733797216154,20.0,216.61,216.45,36.45230423]
[1733797216322,20.0,216.61,216.42,11.5516]
[1733797216526,0.12549,216.6,216.45,36.45230423]
[1733797216828,0.12549,216.6,216.38,11.5535]
[1733797216829,0.12549,216.6,216.42,36.45230423]
[1733797217031,20.12549,216.6,216.42,36.45230423]
[1733797217246,0.12549,216.58,216.41,36.45230423]
[1733797217544,20.0,216.54,216.39,36.45230423]
[1733797217854,20.0,216.54,216.43,36.45230423]
[1733797218047,20.0,216.54,216.44,36.45230423]
[1733797218231,6.0217,216.57,216.48,36.45230423]
[1733797218545,6.0217,216.57,216.37,36.45230423]
[1733797218546,6.0217,216.57,216.46,36.45230423]
[1733797218960,6.0217,216.57,216.37,36.45230423]
[1733797218961,6.0217,216.57,216.42,36.45230423]
[1733797219448,20.0,216.54,216.43,36.45230423]
[1733797219656,20.0,216.54,216.44,36.45230423]
[1733797220240,20.0,216.54,216.42,36.45230423]
[1733797220747,20.0,216.54,216.43,36.45230423]
[1733797220949,20.0,216.54,216.42,36.45230423]
[1733797221134,20.0,216.54,216.4,36.45230423]
[1733797221331,20.0,216.54,216.39,348.45230423]
[1733797221531,0.12549,216.53,216.39,312.0]
[1733797221762,0.12549,216.53,216.37,36.45230423]
[1733797222629,20.12549,216.53,216.34,36.45230423]
[1733797223046,6.4197,216.52,216.34,36.45230423]
[1733797223243,0.12549,216.48,216.35,36.45230423]
[1733797223434,0.12549,216.48,216.34,36.45230423]
[1733797224148,0.12549,216.48,216.33,36.45230423]
[1733797225232,20.0,216.49,216.36,36.45230423]
[1733797226251,0.12549,216.48,216.35,36.45230423]
[1733797226765,0.12549,216.48,216.33,36.45230423]
[1733797227054,1.6147,216.47,216.33,36.45230423]
[1733797227231,1.6147,216.47,216.32,36.45230423]
[1733797227232,0.12549,216.46,216.32,36.45230423]
[1733797227532,0.12549,216.46,216.33,36.45230423]
[1733797227726,1.6147,216.47,216.35,36.45230423]
[1733797227931,1.6147,216.47,216.36,36.45230423]
[1733797228137,1.6147,216.47,216.34,36.45230423]
[1733797228745,1.6147,216.47,216.33,36.45230423]
[1733797229129,0.12549,216.46,216.34,22.56885752]
[1733797229347,0.12549,216.46,216.33,22.56885752]
[1733797229956,1.6147,216.47,216.35,22.56885752]
[1733797230151,1.6147,216.47,216.37,22.56885752]
[1733797230353,1.6147,216.47,216.36,22.56885752]
[1733797231447,1.6147,216.47,216.38,22.56885752]
[1733797231742,6.4197,216.52,216.41,22.56885752]
[1733797231944,6.4197,216.52,216.42,22.56885752]
[1733797232264,6.4197,216.52,216.41,22.56885752]
[1733797233044,6.4197,216.52,216.42,22.56885752]
[1733797233460,6.4197,216.52,216.41,22.56885752]
[1733797233641,6.4197,216.52,216.42,22.56885752]
[1733797234541,6.4197,216.52,216.43,22.56885752]
[1733797234741,6.4197,216.52,216.44,22.56885752]
[1733797235258,6.4197,216.52,216.46,22.56885752]
[1733797235462,6.4118,216.57,216.51,22.56885752]
[1733797235660,6.4118,216.57,216.52,22.56885752]